Cogmind - Beta 16 @@@ ROGUE MODE // 2025.12.31 @ 14:00:56 Player: tanukistars115 Result: Destroyed by Y-45 Defender with Beam Rifle Performance ------------- Evolutions (2) 1000 Regions Visited (4) 800 Robots Destroyed (43) 215 Value Destroyed (1165) 1165 Prototype IDs (5) 100 Alien Tech Used (0) 0 Bonus (0) 0 TOTAL SCORE: 3280 Bonus ------- None Cogmind --------- Core Integrity 0/550 Matter 180/300 Energy 100/100 System Corruption 0% Temperature Cool (27) Movement Core (50) Location -8/Materials Parts ------- > --- POWER (1) -------- (None) > --- PROPULSION (2) --- (None) > --- UTILITY (4) ------ Visual Processing Unit Signal Interpreter Hacking Suite > --- WEAPON (4) ------- (None) > --- INVENTORY (5) ---- Reflective Plating Peak State ------------ > --- POWER ------------ Nuclear Core > --- PROPULSION ------- Advanced Treads Advanced Treads > --- UTILITY ---------- Visual Processing Unit Signal Interpreter ECM Suite Layered Light Armor Plating > --- WEAPON ----------- Advanced Beam Cannon Advanced Beam Cannon Grenade Launcher Mining Claw > --- INVENTORY -------- Hardened Light Armor Plating Reflective Plating Hacking Suite Heavy EM Pulse Gun [Rating: 26] Favorites ----------- Power Light Ion Engine Engine Light Ion Engine Power Core Nuclear Core Propulsion Improved Treads Treads Improved Treads Wheel Compact Wheel Utility ECM Suite Device ECM Suite Processor Visual Processing Unit Hackware Hacking Suite Protection Hardened Light Armor Plating Weapon Medium Laser Energy Gun Medium Laser Energy Cannon Advanced Beam Cannon Ballistic Gun Heavy Assault Rifle Ballistic Cannon Light Cannon Launcher Grenade Launcher Slashing Weapon Mining Claw Build | -11 -10 -10 -9 -8 ------- Run | Yrd Mat Min Mat Mat Slots Evolved 4 | . . . 2 2 Power . | . . . . . Propulsion . | . . . . . Utility 2 | . . . 1 1 Weapon 2 | . . . 1 1 Parts Attached 29 | 5 7 . 5 12 Power 4 | 1 1 . 1 1 Engine 3 | 1 1 . 1 . Core 1 | . . . . 1 Reactor . | . . . . . Propulsion 6 | 2 2 . . 2 Treads 4 | . 2 . . 2 Leg . | . . . . . Wheel 2 | 2 . . . . Hover . | . . . . . Flight . | . . . . . Utility 7 | . 2 . 1 4 Device 2 | . 2 . . . Storage . | . . . . . Processor 2 | . . . 1 1 Hackware 1 | . . . . 1 Protection 2 | . . . . 2 Artifact . | . . . . . Weapon 12 | 2 2 . 3 5 Energy Gun 4 | 1 1 . 2 . Energy Cannon 2 | . . . . 2 Ballistic Gun 3 | 1 1 . . 1 Ballistic Cannon 1 | . . . . 1 Launcher 1 | . . . . 1 Special Weapon . | . . . . . Impact Weapon . | . . . . . Slashing Weapon 1 | . . . 1 . Piercing Weapon . | . . . . . Special Melee Weapon . | . . . . . Unidentified Prototypes 1 | . . . . 1 Parts Lost 16 | . 1 . . 15 Power 2 | . 1 . . 1 Propulsion 3 | . . . . 3 Utility 4 | . . . . 4 Weapon 7 | . . . . 7 Highest Loss Streak 12 | . 1 . . 12 To Critical Strikes . | . . . . . Average Backups 2 | . 3 5 4 2 Power . | . . . . . Propulsion . | . . . . . Utility 1 | . 1 2 1 1 Weapon 1 | . 1 3 2 . Tool/Special . | . . . . . Unused Backups 2 | . . . . 2 Power . | . . . . . Propulsion 1 | . . . . 1 Utility 1 | . . . . 1 Weapon . | . . . . . Tool/Special . | . . . . . Average Slot Usage (%) 94 | . 95 100 98 91 Engine 9 | . 12 14 11 3 Core 1 | . . . . 4 Treads 21 | . 25 28 22 15 Device 20 | . 25 28 22 10 Processor 6 | . . . 11 14 Protection 2 | . . . . 8 Energy Gun 10 | . 14 14 12 4 Energy Cannon 3 | . . . . 9 Ballistic Gun 8 | . 13 14 8 . Launcher 2 | . . . . 6 Slashing Weapon 4 | . . . 10 8 Peak Build Rating 26 | 5 10 10 16 26 Average Rating 13 | 3 9 10 13 20 On Entrance 8 | . 5 10 10 16 Avg Prop Armor Cover (%) 16 | . . . . 16 Naked Turns . | . . . . . Heaviest Build 27 | 8 13 11 18 27 Greatest Support 46 | 32 46 46 46 46 Greatest Overweight (x) 6 | . . . . 6 Average Overweight (x) . | . . . . . Largest Inventory Capacity 5 | 5 5 5 5 5 Average Capacity 5 | 5 5 5 5 5 Most Carried 5 | 5 5 5 5 4 Average Carried 3 | . 3 5 3 2 Final Capacity 5 | 5 5 5 5 5 Final Carried 5 | . 5 5 4 1 Class Distribution -------------------- 72% | Mutant 27% | Tank Dominant Class ---------------- Mutant | -10/Materials Mutant | -10/Mines Mutant | -9/Materials Tank | -8/Materials Resources | -11 -10 -10 -9 -8 ----------- Run | Yrd Mat Min Mat Mat Matter Collected 835 | 209 169 . 83 374 Remotely . | . . . . . Salvage Created 1150 | . 297 . 83 770 Parts 82 | . 29 . 9 44 Haulers Intercepted 1 | . . . . 1 Recyclers Shooed . | . . . . . Parts Field Recycled . | . . . . . Retrieved Matter . | . . . . . Parts Self-Destructed . | . . . . . Prevented . | . . . . . Parts Restored . | . . . . . Kills | -11 -10 -10 -9 -8 ------- Run | Yrd Mat Min Mat Mat Combat Hostiles Destroyed 30 | . 12 . 1 17 Guns 15 | . 12 . 1 2 Cannons 2 | . . . . 2 AOE 13 | . . . . 13 Classes Destroyed 8 | . 4 . 1 3 Worker 4 | . 1 . . 3 Builder 4 | . . . . 4 Hauler 1 | . . . . 1 Recycler 1 | . . . . 1 Watcher 3 | . 2 . 1 . Swarmer 9 | . 9 . . . Grunt 18 | . 3 . . 15 Sentry 3 | . . . 1 2 Best Kill Streak 7 | . 4 . 1 7 Combat Bots Only 6 | . 3 . 1 6 Max Kills in Single Turn 2 | . 2 . 1 2 Gunslinging 1 | . 1 . . . Exploded 2 | . . . . 2 Melee . | . . . . . Uniques/NPCs Destroyed . | . . . . . Combat | -11 -10 -10 -9 -8 -------- Run | Yrd Mat Min Mat Mat Hostile Shots Fired 268 | . 48 . 10 210 Missed 81 | . 13 . 2 66 Hits 187 | . 35 . 8 144 Projectile 187 | . 35 . 8 144 Critical Strikes 2 | . 1 . . 1 Damage Taken 2597 | . 363 . 121 2113 Core 631 | . 64 . 15 552 Absorbed by Shields . | . . . . . Regen/Repaired (Parts) 229 | . 229 . . . Core Remaining (%) 90 | 100 . 74 96 . Volleys Fired 93 | . 29 . 12 52 Largest 3 | . 2 . 2 3 Hottest 166 | . 73 . 73 166 Shots Fired 198 | . 57 . 24 117 Gun 112 | . 57 . 24 31 Cannon 63 | . . . . 63 Launcher 23 | . . . . 23 Special . | . . . . . Kinetic 72 | . 29 . 12 31 Thermal 77 | . 28 . 12 37 Explosive 23 | . . . . 23 Electromagnetic 26 | . . . . 26 Robot Hit Streak 11 | . 11 . 6 11 Robot Miss Streak 6 | . 5 . 5 6 Penetration Max . | . . . . . Secondary Targets 5 | . 5 . . . Max Gunslinging Chain 1 | . 1 . . . Shots Hit Robots 102 | . 33 . 8 61 Core Hits 80 | . 18 . 3 59 Critical Kills . | . . . . . Critical Parts Destroyed 1 | . . . . 1 Critical Strikes 3 | . . . 1 2 Burn 1 | . . . 1 . Destroy 1 | . . . . 1 Blast 1 | . . . . 1 Melee Attacks 6 | . . . . 6 Impact . | . . . . . Slashing 6 | . . . . 6 Piercing . | . . . . . Sneak Attacks 5 | . . . . 5 Combat Hostiles . | . . . . . Follow-up Attacks . | . . . . . Damage Inflicted 2948 | . 399 . 107 2442 Guns 832 | . 386 . 107 339 Cannons 583 | . . . . 583 Explosions 1236 | . . . . 1236 Melee 260 | . . . . 260 Ramming 37 | . 13 . . 24 Kinetic 616 | . 186 . 57 373 Thermal 761 | . 200 . 50 511 Explosive 1012 | . . . . 1012 Electromagnetic 262 | . . . . 262 Impact . | . . . . . Slashing 260 | . . . . 260 Piercing . | . . . . . Highest Corruption . | . . . . . Average Corruption . | . . . . . Corruption Purged . | . . . . . Corruption Blocked . | . . . . . Overload Shots . | . . . . . Overflow Damage 55 | . . . . 55 Projectiles 1 | . . . . 1 Explosions 9 | . . . . 9 Melee 45 | . . . . 45 Knockbacks 2 | . . . . 2 Impact . | . . . . . Kinetic 2 | . . . . 2 Secondary . | . . . . . Self-Inflicted Damage 187 | . . . . 187 Shots 7 | . . . . 7 Rammed 10 | . 4 . . 6 Targets Rammed 11 | . 5 . . 6 Kicked . | . . . . . Crushed 1 | . 1 . . . Highest Temperature 639 | . 250 . 33 639 Average Temperature 167 | . 71 . 9 218 Received Heat Transfer 816 | . 60 . 27 729 Effects 28 | . . . . 28 Shutdowns 5 | . . . . 5 Energy Bleed 5 | . . . . 5 Interference 4 | . . . . 4 Matter Decay 1 | . . . . 1 Short Circuit 3 | . . . . 3 Damage (minor) 4 | . . . . 4 Damage (major) 6 | . . . . 6 Siege Activations . | . . . . . Martial Activations . | . . . . . Shielding Activations . | . . . . . Robots Disrupted . | . . . . . Combat Hostiles . | . . . . . Robots Corrupted . | . . . . . Combat Hostiles . | . . . . . Parts Fried . | . . . . . Impact Corruptions . | . . . . . Robots Melted . | . . . . . Combat Hostiles . | . . . . . Parts Melted 1 | . . . 1 . Heat Transferred 1532 | . 592 . 222 718 Parts Sabotaged . | . . . . . Parts Stolen . | . . . . . Parts Stripped . | . . . . . Power Chain Reactions 3 | . . . . 3 Alert | -11 -10 -10 -9 -8 ------- Run | Yrd Mat Min Mat Mat Maximum Alert Level 1 | . . . . 1 Low Security (%) 79 | 100 100 100 100 32 Level 1 20 | . . . . 67 Level 2 . | . . . . . Level 3 . | . . . . . Level 4 . | . . . . . Level 5 . | . . . . . High Security . | . . . . . Max Security . | . . . . . Peak Influence 373 | . 120 23 30 373 Initial 23 | . . 23 . . Average 82 | . 44 12 2 194 Influence Increases 1105 | . 381 . 37 687 Destroy 0b10 Robot/C 600 | . 240 . 20 340 Destroy 0b10 Robot/NC 65 | . 15 . 5 45 Destroy Leader 128 | . 44 . 12 72 Successful Hack 36 | . 36 . . . Disable Machine 75 | . 15 . . 60 Destroy Structure 126 | . 1 . . 125 Lose Combat Pursuer 75 | . 30 . . 45 Influence Decreases 834 | . 321 60 37 416 Entered New Map 37 | . . 37 . . Time Decay 637 | . 311 23 37 266 Lost Part 160 | . 10 . . 150 Squads Dispatched 8 | . 2 . . 6 Investigation 3 | . 2 . . 1 Extermination . | . . . . . Reinforcement 4 | . . . . 4 Assault . | . . . . . Garrison 1 | . . . . 1 Intercept . | . . . . . Searches Triggered . | . . . . . Construction Impeded 2 | . . . . 2 Haulers Reinforced . | . . . . . Active Scanning Responses . | . . . . . Cargo Convoy Interrupts . | . . . . . Stealth | -11 -10 -10 -9 -8 --------- Run | Yrd Mat Min Mat Mat Distress Signals 5 | . 1 . . 4 Communications Jammed . | . . . . . Distress Signals . | . . . . . Times Spotted 62 | . 19 . 3 40 Peak Tracking Total 11 | . 3 . 2 11 Tactical Retreats 9 | . 4 . . 5 ECM-based Alert Blocks 9 | . 3 . . 6 Traps | -11 -10 -10 -9 -8 ------- Run | Yrd Mat Min Mat Mat Traps Triggered 3 | . 1 . 1 1 Indirectly . | . . . . . Trap Hack Attempts . | . . . . . Triggered . | . . . . . Disarmed . | . . . . . Reprogrammed . | . . . . . Reused . | . . . . . Traps Extracted . | . . . . . Installed . | . . . . . Triggered . | . . . . . Machines | -11 -10 -10 -9 -8 ---------- Run | Yrd Mat Min Mat Mat Machines Disabled 5 | . 1 . . 4 Max in Single Turn 1 | . 1 . . 1 Machines Repaired . | . . . . . Machines Dismantled . | . . . . . Machines Sabotaged . | . . . . . Overloaded Fab Kills . | . . . . . Hacking | -11 -10 -10 -9 -8 --------- Run | Yrd Mat Min Mat Mat Machines Accessed 8 | . 7 . 1 . Terminals 7 | . 6 . 1 . Fabricators . | . . . . . Repair Stations 1 | . 1 . . . Recycling Units . | . . . . . Scanalyzers . | . . . . . Garrison Access . | . . . . . Total Hacks 36 | . 33 . 3 . Successful 26 | . 24 . 2 . Failed 10 | . 9 . 1 . Catastrophic 1 | . 1 . . . Database Lockouts . | . . . . . Manual . | . . . . . Terminals 24 | . 21 . 3 . Fabricators . | . . . . . Repair Stations 12 | . 12 . . . Recycling Units . | . . . . . Scanalyzers . | . . . . . Garrison Access . | . . . . . Terminal Hacks 18 | . 16 . 2 . Record 11 | . 11 . . . Prototype ID Bank 2 | . 2 . . . Alert Level 1 | . 1 . . . Dispatch Records 1 | . . . 1 . Maintenance Status 1 | . . . 1 . Registered Components 1 | . 1 . . . Zone Layout 1 | . 1 . . . Fabricator Hacks . | . . . . . Repair Station Hacks 8 | . 8 . . . Scan Component 4 | . 4 . . . Repair 4 | . 4 . . . Recycling Unit Hacks . | . . . . . Scanalyzer . | . . . . . Garrison Access Hacks . | . . . . . Unauthorized Hacks . | . . . . . Terminals . | . . . . . Fabricators . | . . . . . Repair Stations . | . . . . . Recycling Units . | . . . . . Scanalyzers . | . . . . . Garrison Access . | . . . . . Data Cores Recovered . | . . . . . Used . | . . . . . Hacking Detections 7 | . 6 . 1 . Full Trace Events 2 | . 2 . . . Feedback Events . | . . . . . Feedback Blocked . | . . . . . Robot Schematics Acquired . | . . . . . Robots Built . | . . . . . Authchips . | . . . . . Time . | . . . . . Total Robot Build Rating . | . . . . . Part Schematics Acquired . | . . . . . Parts Built . | . . . . . Authchips . | . . . . . Time . | . . . . . Total Part Build Rating . | . . . . . Part Studies Acquired . | . . . . . Parts Repaired 4 | . 4 . . . Time 122 | . 122 . . . Parts Recycled . | . . . . . Recycled Matter . | . . . . . Retrieved Matter . | . . . . . Retrieved Components . | . . . . . Parts Scanalyzed . | . . . . . Part Schematics Acquired . | . . . . . Parts Damaged . | . . . . . Bothacking | -11 -10 -10 -9 -8 ------------ Run | Yrd Mat Min Mat Mat Used RIF Installer . | . . . . . Robots Hacked . | . . . . . Non-combat . | . . . . . Combat . | . . . . . Robot Hacks Applied . | . . . . . Relay Couplers Released . | . . . . . Fabnet Peak Effective % . | . . . . . Robots Rewired . | . . . . . Allies Hacked . | . . . . . Hacks Repelled . | . . . . . Allies | -11 -10 -10 -9 -8 -------- Run | Yrd Mat Min Mat Mat Total Allies . | . . . . . Largest Group . | . . . . . Highest-Rated Group . | . . . . . Highest-Rated Ally . | . . . . . Total Orders . | . . . . . Ally Attacks . | . . . . . Total Damage . | . . . . . Kills . | . . . . . Allies Corrupted . | . . . . . Allies Melted . | . . . . . Intel | -11 -10 -10 -9 -8 ------- Run | Yrd Mat Min Mat Mat Active Infowar (turns) 1949 | . 981 60 303 605 Optics 908 | . . . 303 605 Seismic 1403 | . 877 60 303 163 ECM 1794 | . 882 60 303 549 Robot Analysis Total . | . . . . . Derelict Logs Recovered . | . . . . . Drone Launches . | . . . . . Drone Recoveries . | . . . . . Exploration | -11 -10 -10 -9 -8 ------------- Run | Yrd Mat Min Mat Mat Turns Passed 2020 | 45 987 60 303 625 Spaces Moved 967 | 42 461 38 160 266 Core 46 | 13 . . . 33 Treads 849 | . 418 38 160 233 Legs . | . . . . . Wheels 72 | 29 43 . . . Hover . | . . . . . Flight . | . . . . . Fastest Speed 50 | 50 100 160 160 100 Average Speed 151 | 84 154 160 160 148 Slowest Speed 350 | 100 160 160 160 350 Overloaded Moves . | . . . . . Propulsion Burnouts . | . . . . . Robots Hopped . | . . . . . Potential Cave-ins . | . . . . . Cave-ins Triggered . | . . . . . Exploration Rate (%) 26 | 4 73 13 19 25 Regions Visited 4 Branch Regions 1 Pre-discovered Areas . | . . . . . Known Exits Taken . | . . . . . Unknown Exits Taken 4 | 1 1 1 1 . Scrap Searched . | . . . . . Spaces Dug . | . . . . . Terrain Destroyed 134 | . . . . 134 Melee . | . . . . . Projectile . | . . . . . AOE 134 | . . . . 134 Terrain Rammed . | . . . . . Walls Destroyed . | . . . . . Machines Disabled . | . . . . . Actions | -11 -10 -10 -9 -8 --------- Run | Yrd Mat Min Mat Mat Total 1334 | 51 677 37 184 385 Wait 182 | . 156 . 1 25 Move 963 | 41 460 37 159 266 Hop . | . . . . . Pick Up 32 | 5 12 . 4 11 Fast Attach 4 | . 4 . . . Attach 21 | 5 3 . 4 9 Detach . | . . . . . Swap 11 | . 4 . 2 5 Drop 11 | . 4 . 2 5 Fire 93 | . 29 . 12 52 Melee 6 | . . . . 6 Ram 6 | . . . . 6 Kick . | . . . . . Crush 5 | . 5 . . . Escape Stasis . | . . . . . Rewire . | . . . . . Trap . | . . . . . Miscellaneous . | . . . . . Route ------- -11/Scrapyard -10/Materials (discovered 3 exits: *Mat x2 / [*Min]) -10/Mines -9/Materials (discovered 2 exits: [*Mat] / [*Min]) -8/Materials (discovered 1 exit: [*Fac]) History --------- Turn | Location | Event 24 | -11/Scrapyard | Discovered new exit (range 15) 46 | -11/Scrapyard | Entered Materials 300 | -10/Materials | Build established: Mutant 313 | -10/Materials | Discovered new exit (range 7) 507 | -10/Materials | Discovered new exit (range 14) 716 | -10/Materials | Discovered new exit (range 12) 802 | -10/Materials | Repaired Imp. Treads 952 | -10/Materials | Repaired Seismic Detector 985 | -10/Materials | Repaired Hvy. Assault Rifle 1019 | -10/Materials | Repaired Imp. Treads 1033 | -10/Materials | Entered Mines 1083 | -10/Mines | Discovered new exit (range 6) 1093 | -10/Mines | Entered Materials 1093 | -9/Materials | Evolved 2 slots: Utility x1, Weapon x1 1254 | -9/Materials | Discovered new exit (range 9) 1309 | -9/Materials | Discovered new exit (range 18) 1396 | -9/Materials | Entered another Materials area 1396 | -8/Materials | Evolved 2 slots: Utility x1, Weapon x1 1681 | -8/Materials | Build established: Tank 1932 | -8/Materials | Garrison activated, responded to threat 1985 | -8/Materials | Discovered new exit (range 17) 1986 | -8/Materials | Core integrity fell below 50% 2018 | -8/Materials | Core integrity fell below 20% 2021 | -8/Materials | Destroyed by Y-45 Defender with Beam Rifle Last Messages --------------- Electrolysis Chamber disabled. Lyr. Light Armor Plating destroyed. Broken Adv. Treads destroyed. Slug penetrates Wall. Y-45 Defender suffers critical hit (Destroy). Destroyed Hvy. Assault Rifle. Hpw. Shotgun destroyed. Critical hit (Burn: +37). Penetrated by Slug. S-10 Pest destroyed. Slammed into X-62 Marksman. Penetrated by Slug. Hrd. Light Armor Plating destroyed. Penetrated by Slug. Electrolysis Chamber disabled. Slammed into G-47 Trooper. Slug penetrates Electrolysis Chamber. Slammed into G-47 Trooper. Visual Processing Unit broken. Destabilizing: Short circuit. Map ----- +----------------------------------------------------+ | ???????????????#"""* #######?? ?? | | ???????????????# ! [ #????????+?? | | ???????????????#""| #??????????? | | ???????????????#"" ! ##?????????? | | ???????????????# * ##?????????? | | ???????????????# ##?????????? | | ???????######### *[ ##?????????? | | ???????#||!!==##" []!####???????? | | ######?#|| !==## = ]/# ##???????? | | # ] #?# ## ]]/ # ####????? | | # [#?## # # # #????? | | # #??# = ###### | | # #### [ # | | # +!%! !% # | | # ######## # #= # | | # #??????####### # = # # | | # #?????????#### # ##????# | | # #?????????# # #??? # | | ######?????????# ! ##?? # | | ????###????????# # #?? # | | ##### #######??######### #? | | # ##T############ ## | | # g""" # =%! | | # s "" # %* =%* | | # %x"mg # % = | | # xY @g u############# %[ | | # " g # #???????????# %!* ## | | # H""" # #???????????# %[ ##? | | # """ # #???????????## #?? | | # # #?????????????# ###?? | | ######+### +?????????????? #???? | | ?????? ?# #?????????????? #???? | | ?????? ?+ #?????????????? #???? | | ?????? # #???????????????#???? | | ??????? ?# #???????????????????? | | ?????????# #???????????????????? | | ?????????# #???????????????????? | | ?????????# #???????????????????? | | ?????????# #???????????????????? | | ?????????# #???????????????????? | | ?????????# #???????????????????? | | ?????????? < ????????????????????? | | ?????????? ????????????????????? | | ?????????????????????????????????? | | ?????????????????????????????????? | | ?????????????????????????????????? | | ?????????????????????????????????? | | ?????????????????????????????????? | | ?????????????????????????????????? | | ?????????????????????????????????? | +----------------------------------------------------+ Best States ------------- Heat Dissipation 31 Energy Generation 14 Energy Capacity 265 Matter Stores 300 Matter Capacity 300 Sight Range 18 Terrain Scan Density 10 ECM Strength 1 Armor Coverage 150 Evasion (%) 50 Recoil Reduction 2 Offensive Hacking 10 Item Schematics ----------------- None Robot Schematics ------------------ None Fabricated ------------ Nothing Repaired ---------- Imp. Treads | 21% | -10/Materials Seismic Detector | 65% | -10/Materials Hvy. Assault Rifle | 59% | -10/Materials Imp. Treads | 65% | -10/Materials Studied --------- None Alien Tech Used ----------------- None Achievements -------------- Heavy Suspicion Challenges ------------ None Game ------ Seed VortexLargeSubcomponent Manual? 0 Play Time 00:22:07 Cumulative 5.6 hours Start 2025.12.31 @ 13:40:41 End 2025.12.31 @ 14:00:56 Sessions 1 Manual Loads 0 Difficulty Rogue Special Mode None Game No. 17 Rogue 17 Adventurer 0 Explorer 0 Win Type - Total 0 Types 0/0/0/0/0/0/0/0/0/0 Lore% 6 Gallery% 12 Achievement% 12 Wizard Run 0 Options --------- Layout 1 ASCII 1 Keyboard 0 Movement Mouse Keybinds 0 Fullscreen 2 Font 32/SmallcapsGlow Map View 50x35 Zoom Use 0% Tactical HUD 0 Map Filters NONE Filters NONE Steam 1 RUN: 865c6bdc-12bc-44fa-97ca-ca1ee90bd4d6